bitfinex/quotes_BTCUSD_20240906
["timestamp","ask_amount","ask_price","bid_price","bid_amount"]
[1725652341738,0.000813,53845.0,53827.0,0.334026]
[1725652341959,0.000813,53845.0,53827.0,0.332026]
[1725652342178,0.18577,53830.0,53827.0,0.334026]
[1725652342399,0.371504,53836.0,53827.0,0.334026]
[1725652342621,0.185761,53833.0,53829.0,0.002]
[1725652343333,0.185763,53832.0,53829.0,0.002]
[1725652343776,0.185761,53833.0,53829.0,0.012]
[1725652344011,0.001,53833.0,53829.0,0.012]
[1725652344242,0.001,53833.0,53831.0,0.185766]
[1725652344473,0.002,53833.0,53830.0,0.002]
[1725652344704,0.002,53833.0,53829.0,0.01]
[1725652344941,0.55731,53830.0,53829.0,0.01]
[1725652345174,0.187762,53833.0,53829.0,0.01]
[1725652345631,0.187762,53833.0,53832.0,0.930815]
[1725652345632,0.002,53833.0,53832.0,0.930815]
[1725652345634,0.002,53833.0,53832.0,0.370963]
[1725652345858,0.002,53833.0,53827.0,0.001626]
[1725652345859,0.557329,53828.0,53827.0,0.001626]
[1725652346081,0.371529,53832.0,53827.0,0.001626]
[1725652346299,0.1,53838.0,53827.0,0.001626]
[1725652346300,0.18577,53830.0,53829.0,0.01]
[1725652346519,0.928882,53828.0,53827.0,0.001626]
[1725652346791,0.557329,53828.0,53827.0,0.001626]
[1725652347027,1.300435,53828.0,53827.0,0.001626]
[1725652347251,0.1883,53848.0,53828.0,0.3419]
[1725652347469,0.1883,53848.0,53830.0,0.187769]
[1725652347703,0.18577,53830.0,53829.0,0.001]
[1725652348190,0.1,53847.0,53829.0,0.001]
[1725652348191,0.1,53847.0,53833.0,0.185758]
[1725652348417,0.18574,53839.0,53830.0,0.5254]
[1725652348645,0.1,53847.0,53837.0,0.185744]
[1725652348863,0.185729,53842.0,53838.0,0.002]
[1725652349081,0.371427,53847.0,53837.0,0.002]
[1725652349082,0.371453,53843.0,53837.0,0.002]
[1725652349375,0.18573,53842.0,53837.0,0.002]
[1725652349557,0.372253,53845.0,53834.0,0.187753]
[1725652349558,0.000813,53845.0,53834.0,0.187753]
[1725652349769,0.185748,53837.0,53834.0,0.002]
[1725652350009,0.000813,53845.0,53834.0,0.002]
[1725652350010,0.371464,53841.0,53834.0,0.002]
[1725652350237,0.000813,53845.0,53834.0,0.002]
[1725652350455,0.000813,53845.0,53844.0,0.544721]
[1725652350687,0.000813,53845.0,53844.0,0.543721]
[1725652350919,0.000813,53845.0,53844.0,0.915164]
[1725652351148,0.000813,53845.0,53844.0,1.66005]
[1725652351371,0.000813,53845.0,53844.0,1.470307]
[1725652351614,0.000813,53845.0,53844.0,1.84175]
[1725652351858,0.001813,53845.0,53844.0,1.85575]
[1725652352970,0.001813,53845.0,53844.0,0.373]
[1725652353227,0.001813,53845.0,53835.0,0.3498]
[1725652353228,0.185749,53836.0,53835.0,0.3498]
[1725652353423,0.557247,53836.0,53835.0,0.3498]
[1725652353649,0.557247,53836.0,53830.0,0.002]
[1725652353650,0.185753,53835.0,53832.0,0.3286]
[1725652353871,0.07153126,53845.0,53832.0,0.3286]
[1725652353872,0.371497,53837.0,53832.0,0.3286]
[1725652354111,0.07253126,53845.0,53832.0,0.3286]
[1725652354341,0.000813,53845.0,53832.0,0.3286]
[1725652354802,0.000813,53845.0,53835.0,0.009]
[1725652354803,0.186749,53836.0,53835.0,0.009]
[1725652355028,0.000813,53845.0,53834.0,0.002]
[1725652355029,0.371472,53840.0,53834.0,0.002]
[1725652355248,0.000813,53845.0,53842.0,0.002]
[1725652355486,0.000813,53845.0,53844.0,0.185721]
[1725652355707,0.000813,53845.0,53844.0,0.002]
[1725652355926,0.000813,53845.0,53832.0,0.3286]
[1725652355927,0.000813,53845.0,53842.0,0.002]
[1725652356150,0.000813,53845.0,53834.0,0.371506]
[1725652356151,0.000813,53845.0,53841.0,0.002]
[1725652356380,0.000813,53845.0,53834.0,0.002]
[1725652356822,0.001813,53845.0,53834.0,0.002]
[1725652357046,0.001813,53845.0,53835.0,0.002]
[1725652357047,0.000813,53845.0,53835.0,0.002]
[1725652357309,0.185743,53838.0,53835.0,0.002]
[1725652357557,0.185738,53840.0,53837.0,0.001]
[1725652357780,0.185744,53838.0,53832.0,0.514361]
[1725652357995,0.185744,53838.0,53834.0,0.005]
[1725652358215,0.185752,53835.0,53834.0,0.003]
[1725652358487,0.928762,53835.0,53834.0,0.003]
[1725652358927,1.300267,53835.0,53834.0,0.003]
[1725652359392,0.185771,53830.0,53827.0,0.001626]
[1725652359621,0.185776,53828.0,53827.0,0.001626]
[1725652359848,0.03009564,53838.0,53829.0,0.002]
[1725652360067,0.03009564,53838.0,53827.0,0.003626]
[1725652360286,0.185776,53828.0,53827.0,0.001626]
[1725652360507,0.928882,53828.0,53827.0,0.001626]
[1725652360947,0.929882,53828.0,53827.0,0.015626]
[1725652361830,0.929882,53828.0,53827.0,0.001626]
[1725652361831,1.300435,53828.0,53827.0,0.001626]
[1725652362073,2.50172221,53828.0,53827.0,0.001626]
[1725652362528,2.50172221,53828.0,53800.0,0.655572]
[1725652362529,0.557547,53807.0,53800.0,0.655572]
[1725652362747,0.557547,53807.0,53799.0,0.3306]
[1725652362748,0.185849,53807.0,53799.0,0.3306]
[1725652363000,0.185848,53808.0,53802.0,0.185865]
[1725652363217,0.1,53827.0,53799.0,0.3306]
[1725652363439,0.1,53827.0,53800.0,0.00371661]
[1725652363740,0.008,53828.0,53818.0,0.3419]
[1725652363964,0.008,53828.0,53823.0,0.002]
[1725652364405,0.1981,53835.0,53815.0,0.570243]
[1725652364406,0.20711526,53835.0,53815.0,0.002]
[1725652364621,0.185806,53820.0,53815.0,0.002]
[1725652364873,0.371571,53826.0,53819.0,0.185807]
[1725652365089,0.001,53827.0,53815.0,0.18782]
[1725652365314,0.371572,53826.0,53815.0,0.002]
[1725652365530,0.371574,53825.0,53815.0,0.002]
[1725652365746,0.001,53827.0,53815.0,0.002]
[1725652365955,0.185795,53823.0,53816.0,0.371635]
[1725652366184,0.1981,53835.0,53811.0,0.92597736]
[1725652366185,0.24435133,53842.0,53823.0,0.347]
[1725652366403,0.371471,53840.0,53831.0,0.371531]
[1725652366621,0.18574,53839.0,53834.0,0.185755]
[1725652366918,0.18574,53839.0,53831.0,0.371531]
[1725652366919,0.185722,53844.0,53839.0,0.187736]
[1725652367137,0.000813,53845.0,53839.0,0.187736]
[1725652367138,0.000813,53845.0,53839.0,0.3363]
[1725652367355,0.185725,53843.0,53842.0,0.002]
[1725652367574,0.193728,53842.0,53841.0,0.002]
[1725652367792,0.008,53842.0,53841.0,0.187732]
[1725652368009,0.557206,53840.0,53839.0,0.3363]
[1725652368226,0.008,53842.0,53841.0,0.002]
[1725652368437,0.008,53842.0,53841.0,0.559196]
[1725652368663,0.008,53842.0,53841.0,1.13007407]
[1725652368878,0.008,53842.0,53841.0,1.50153807]
[1725652369098,0.008,53842.0,53841.0,1.60153807]
[1725652369312,0.008,53842.0,53841.0,1.60103807]
[1725652369745,0.001,53844.0,53843.0,1.301575]
[1725652369973,0.001,53844.0,53843.0,1.401575]
[1725652370193,0.000813,53845.0,53843.0,1.401575]
[1725652370194,0.000813,53845.0,53844.0,1.30155]
[1725652370426,0.000813,53845.0,53839.0,0.371476]
[1725652370427,0.000813,53845.0,53836.0,0.3354]
[1725652370674,0.000813,53845.0,53841.0,0.014]
[1725652370887,0.000813,53845.0,53837.0,0.0015]
[1725652371110,0.000813,53845.0,53836.0,0.3354]
[1725652371111,0.37145,53843.0,53836.0,0.3354]
[1725652371383,0.000813,53845.0,53843.0,0.014]
[1725652371384,0.929607,53844.0,53843.0,0.014]
[1725652371602,1.30105,53844.0,53843.0,0.014]
[1725652372526,0.371472,53840.0,53831.0,0.3324]
[1725652372736,0.371494,53837.0,53831.0,0.3324]
[1725652372967,0.37145,53843.0,53831.0,0.3339]
[1725652373188,0.18575,53836.0,53834.0,0.0015]
[1725652373878,0.371483,53839.0,53834.0,0.0015]
[1725652374095,0.185752,53835.0,53834.0,0.0015]
[1725652374307,0.185749,53836.0,53834.0,0.0015]
[1725652374578,0.185749,53836.0,53834.0,0.0155]
[1725652375249,0.557257,53835.0,53834.0,0.014]
[1725652375482,0.928762,53835.0,53834.0,0.014]
[1725652376128,0.185752,53835.0,53834.0,0.014]
[1725652376362,0.1957,53839.0,53827.0,0.003126]
[1725652376363,0.185767,53831.0,53827.0,0.003126]
[1725652376577,0.185764,53832.0,53831.0,0.0015]
[1725652377270,0.55729,53832.0,53831.0,0.0015]
[1725652377484,0.372507,53835.0,53831.0,0.0015]
[1725652377485,0.371507,53835.0,53831.0,0.0015]
[1725652377743,0.371503,53836.0,53831.0,0.0015]
[1725652377744,0.001,53832.0,53831.0,0.0155]
[1725652378161,0.001,53832.0,53831.0,0.187266]
[1725652378387,0.001,53832.0,53831.0,0.201266]
[1725652378388,0.002,53832.0,53831.0,0.201266]
[1725652379329,0.002,53832.0,53831.0,0.0155]
[1725652379565,0.1837,53843.0,53831.0,0.0155]
[1725652379566,0.371479,53839.0,53831.0,0.187266]
[1725652379805,0.185745,53837.0,53836.0,0.0015]
[1725652380051,0.000813,53844.0,53836.0,0.0015]
[1725652380322,0.000813,53844.0,53841.0,0.0015]
[1725652380550,0.000813,53844.0,53843.0,1.301575]
[1725652380837,0.000813,53844.0,53843.0,1.641475]
[1725652381117,0.000813,53844.0,53843.0,1.270025]
[1725652381350,0.000813,53844.0,53843.0,0.898575]
[1725652381619,0.000813,53844.0,53843.0,1.270025]
[1725652381860,0.000813,53844.0,53843.0,0.898575]
[1725652382104,0.000813,53844.0,53843.0,0.527125]
[1725652382351,0.000813,53844.0,53843.0,0.3414]
[1725652382605,0.000813,53844.0,53843.0,0.3399]
[1725652382902,0.000813,53844.0,53836.0,0.014]
[1725652382903,0.001813,53844.0,53836.0,0.014]
[1725652383144,0.001813,53844.0,53833.0,0.373013]
[1725652383145,0.000813,53844.0,53833.0,0.373013]
[1725652383381,0.180727,53843.0,53836.0,0.371496]
[1725652383673,0.001813,53844.0,53843.0,0.0015]
[1725652383928,0.001813,53844.0,53843.0,0.511225]
[1725652383929,0.000813,53844.0,53843.0,0.511225]
[1725652384253,0.000813,53844.0,53843.0,1.98089299]
[1725652384464,0.000813,53844.0,53843.0,2.55109538]
[1725652384465,0.001813,53844.0,53843.0,2.55109538]
[1725652384711,0.00082,53855.0,53854.0,1.625309]
[1725652384923,0.00082,53855.0,53854.0,1.910109]
[1725652385369,0.00082,53855.0,53854.0,1.97868611]
[1725652386471,0.00082,53855.0,53854.0,1.538735]
[1725652386693,0.00082,53855.0,53854.0,1.167361]
[1725652386916,0.00082,53855.0,53850.0,0.371398]
[1725652386917,0.185688,53854.0,53848.0,0.3342]
[1725652387145,0.00082,53855.0,53854.0,0.0015]
[1725652387146,0.00182,53855.0,53854.0,0.0015]
[1725652387368,0.00182,53855.0,53854.0,0.187187]
[1725652387584,0.00082,53855.0,53854.0,0.187187]
[1725652387803,0.00182,53855.0,53854.0,0.201187]
[1725652388026,0.00082,53855.0,53854.0,0.0015]
[1725652388249,0.00082,53855.0,53854.0,0.187187]
[1725652388471,0.00182,53855.0,53854.0,0.009]
[1725652388989,0.930237,53855.0,53854.0,0.009]
[1725652388995,1.652804,53855.0,53854.0,0.009]
[1725652389197,1.78188991,53855.0,53854.0,0.009]
[1725652389464,1.78188991,53855.0,53836.0,0.55430836]
[1725652389465,0.557236,53837.0,53836.0,0.55430836]
[1725652389749,1.123827,53837.0,53836.0,0.55430836]
[1725652389998,1.123827,53837.0,53822.0,0.518496]
[1725652389999,0.185776,53828.0,53822.0,0.3327]
[1725652390233,0.557329,53828.0,53822.0,0.3327]
[1725652390473,0.557329,53828.0,53799.0,0.37175]
[1725652390474,1.300435,53828.0,53809.0,0.371681]
[1725652390722,1.300435,53828.0,53808.0,0.0015]
[1725652390723,1.751635,53828.0,53808.0,0.518544]
[1725652390937,1.751635,53828.0,53808.0,0.3327]
[1725652391210,1.751635,53828.0,53814.0,0.0015]
[1725652391441,1.88994203,53828.0,53827.0,0.010626]
[1725652391677,2.26981803,53828.0,53827.0,0.001626]
[1725652392404,0.380876,53828.0,53827.0,0.001626]
[1725652392700,0.928882,53828.0,53827.0,0.001626]
[1725652393158,1.21759088,53828.0,53827.0,0.001626]
[1725652393385,0.84403788,53828.0,53827.0,0.001626]
[1725652393613,0.47348488,53828.0,53827.0,0.005626]
[1725652393870,0.47248488,53828.0,53827.0,0.001626]
[1725652394127,2.34964657,53828.0,53827.0,0.001626]
[1725652394404,0.929262,53806.0,53805.0,0.55430836]
[1725652394615,0.97480888,53828.0,53805.0,0.55430836]
[1725652394616,0.1,53819.0,53805.0,0.55430836]
[1725652394831,0.1,53819.0,53802.0,0.0015]
[1725652395045,0.371624,53818.0,53799.0,0.0015]
[1725652395267,0.3319,53820.0,53796.0,0.1882]
[1725652395268,0.371727,53803.0,53796.0,0.1882]
[1725652395486,0.185872,53801.0,53796.0,0.1882]
[1725652395920,0.371727,53803.0,53796.0,0.0015]
[1725652396129,0.185863,53803.0,53802.0,0.0015]
[1725652396338,0.185863,53803.0,53796.0,0.371771]
[1725652396339,0.185863,53803.0,53800.0,0.0015]
[1725652396563,0.185867,53802.0,53800.0,0.0015]
[1725652396763,0.371715,53805.0,53800.0,0.0015]
[1725652397037,0.001,53801.0,53799.0,0.0015]
[1725652397251,0.371715,53805.0,53799.0,0.0015]
[1725652397252,0.185864,53803.0,53799.0,0.0015]
[1725652397674,0.001,53803.0,53800.0,0.008]
[1725652397921,0.001,53803.0,53802.0,0.0015]
[1725652398151,0.001,53803.0,53802.0,0.559099]
[1725652399054,0.001,53803.0,53802.0,0.557599]
[1725652399280,0.001,53803.0,53802.0,0.559099]
[1725652399529,0.001,53803.0,53802.0,1.655865]
[1725652399712,0.185863,53803.0,53802.0,0.3533]
[1725652399921,0.02910263,53817.0,53802.0,0.3533]
[1725652399922,0.185841,53810.0,53808.0,0.0015]
[1725652400134,0.371638,53816.0,53806.0,0.0015]
[1725652400352,0.371638,53816.0,53803.0,0.371725]
[1725652400353,0.02910263,53817.0,53805.0,0.0015]
[1725652400563,0.371654,53814.0,53805.0,0.0015]
[1725652400786,0.185842,53809.0,53805.0,0.0015]
[1725652400993,0.185852,53807.0,53804.0,0.0015]
[1725652401443,0.3425,53813.0,53799.0,0.0015]
[1725652401667,0.3471,53822.0,53802.0,0.0015]
[1725652401881,0.185857,53805.0,53802.0,0.0015]
[1725652402124,0.371688,53809.0,53799.0,0.0015]
[1725652402338,0.37171,53806.0,53797.0,0.0015]
[1725652402546,0.001,53810.0,53795.0,0.3533]
[1725652402547,0.1952,53808.0,53795.0,0.3533]
[1725652402757,0.185865,53803.0,53798.0,0.185878]
[1725652402988,0.37169,53809.0,53800.0,0.0015]
[1725652403196,0.001,53810.0,53800.0,0.0015]
[1725652403433,0.001,53810.0,53798.0,0.0015]
[1725652403650,0.185855,53806.0,53802.0,0.0015]
[1725652403864,0.185861,53804.0,53802.0,0.0015]
[1725652404072,0.185854,53806.0,53802.0,0.0015]
[1725652404301,0.185856,53805.0,53804.0,0.009]
[1725652404506,0.185856,53805.0,53800.0,0.0015]
[1725652404507,0.185863,53803.0,53800.0,0.0015]
[1725652404745,0.185859,53804.0,53800.0,0.187372]
[1725652405155,0.371723,53804.0,53800.0,0.0015]
[1725652405364,0.185861,53804.0,53802.0,0.009]
[1725652405512,0.185861,53804.0,53800.0,0.185872]
[1725652405953,0.001,53806.0,53805.0,0.187356]
[1725652406160,0.001,53806.0,53805.0,1.46178]
[1725652406513,0.001,53806.0,53805.0,1.833492]
[1725652407136,0.185815,53817.0,53813.0,0.185828]
[1725652407352,0.371604,53821.0,53812.0,0.371658]
[1725652407555,0.371604,53821.0,53806.0,0.371703]
[1725652407556,0.371671,53811.0,53810.0,0.0015]
[1725652407764,0.185826,53814.0,53810.0,0.0015]
[1725652407971,0.185826,53814.0,53810.0,0.187338]
[1725652408191,0.185826,53814.0,53811.0,0.185835]
[1725652408406,0.1,53830.0,53808.0,0.0015]
[1725652408626,0.371499,53836.0,53811.0,0.371667]
[1725652408627,0.1,53828.0,53811.0,0.371667]
[1725652408835,0.185821,53815.0,53814.0,0.0015]
[1725652409040,0.185818,53817.0,53812.0,0.18733]
[1725652409250,0.185824,53815.0,53812.0,0.0015]
[1725652409452,0.185825,53814.0,53812.0,0.0015]
[1725652409999,0.371637,53816.0,53812.0,0.0015]
[1725652410450,0.3374,53831.0,53818.0,0.0015]
[1725652410676,0.3374,53831.0,53813.0,0.371656]
[1725652410677,0.3374,53831.0,53813.0,0.0015]
[1725652410897,0.3374,53831.0,53814.0,0.185824]
[1725652410898,0.185812,53818.0,53814.0,0.185824]
[1725652411129,0.185812,53818.0,53813.0,0.37315]
[1725652411130,0.3374,53831.0,53813.0,0.0015]
[1725652411351,0.37162,53819.0,53814.0,0.185823]
[1725652411580,0.3374,53831.0,53812.0,0.014]
[1725652411581,0.371657,53813.0,53812.0,0.014]
[1725652411802,0.371667,53812.0,53808.0,0.0015]
[1725652412017,0.123,53828.0,53808.0,0.0015]
[1725652412018,0.185806,53820.0,53808.0,0.0015]
[1725652412266,0.185806,53820.0,53819.0,0.0015]
[1725652412515,0.1,53828.0,53817.0,0.0015]
[1725652412816,0.371602,53821.0,53816.0,0.0015]
[1725652413048,0.01,53843.0,53816.0,0.0015]
[1725652413049,0.185788,53825.0,53821.0,0.185799]
[1725652413312,0.05540015,53852.0,53817.0,0.5196]
[1725652413313,0.371509,53835.0,53817.0,0.5196]
[1725652413582,0.18577,53830.0,53818.0,0.00371523]
[1725652413852,0.190313,53844.0,53819.0,0.371613]
[1725652414102,0.190313,53844.0,53824.0,0.371576]
[1725652414306,0.190313,53844.0,53821.0,0.014]
[1725652414527,0.001,53825.0,53824.0,0.18579]
[1725652414740,0.001,53825.0,53824.0,0.557371]
[1725652415186,0.000814,53828.0,53824.0,0.557371]
[1725652415187,0.000814,53828.0,53824.0,0.371581]
[1725652415410,0.000814,53828.0,53827.0,0.0015]
[1725652415642,0.000814,53828.0,53827.0,0.55884]
[1725652416081,0.000814,53828.0,53827.0,0.37306]
[1725652416342,0.000814,53828.0,53827.0,1.65036]
[1725652416560,0.371331,53861.0,53827.0,1.65036]
[1725652416561,0.557207,53840.0,53839.0,0.0015]
[1725652416774,0.557215,53839.0,53838.0,0.0015]
[1725652416988,0.928692,53839.0,53838.0,0.0015]
[1725652417214,0.00082,53855.0,53831.0,0.0015]
[1725652417215,0.371462,53842.0,53831.0,0.0015]
[1725652417429,0.371462,53842.0,53827.0,0.3484]
[1725652417430,0.557299,53831.0,53830.0,0.0015]
[1725652418083,0.557299,53831.0,53808.0,0.35]
[1725652418084,0.00082,53855.0,53821.0,0.3269]
[1725652418303,0.00082,53855.0,53799.0,0.001628]
[1725652418304,0.185811,53818.0,53817.0,0.1973]
[1725652418530,0.02214425,53838.0,53815.0,0.8157]
[1725652418531,0.02214425,53838.0,53818.0,0.0015]
[1725652418754,0.185807,53819.0,53818.0,0.0015]
[1725652418961,0.185802,53821.0,53818.0,0.0015]
[1725652419180,0.37154,53830.0,53818.0,0.373116]
[1725652419421,0.1,53835.0,53818.0,0.0015]
[1725652419641,0.371575,53825.0,53818.0,0.0015]
[1725652419857,0.5456,53834.0,53818.0,0.0015]
[1725652420108,0.371582,53824.0,53818.0,0.0015]
[1725652420319,0.1,53833.0,53818.0,0.0015]
[1725652420320,0.185795,53823.0,53820.0,0.0015]
[1725652420535,0.185801,53821.0,53820.0,0.0015]
[1725652420754,0.1,53833.0,53819.0,0.0015]
[1725652420978,0.00082,53855.0,53816.0,0.37163]
[1725652420979,0.371458,53842.0,53816.0,0.0015]
[1725652421196,0.185809,53819.0,53816.0,0.0015]
[1725652421416,0.185801,53821.0,53816.0,0.187317]
[1725652421638,0.371525,53833.0,53816.0,0.0015]
[1725652421856,0.371647,53815.0,53808.0,0.3301]
[1725652422069,0.371647,53815.0,53812.0,0.55430836]
[1725652422070,0.185829,53813.0,53812.0,0.55430836]
[1725652422288,0.185829,53813.0,53809.0,0.381741]
[1725652422289,0.185829,53813.0,53809.0,0.1959]
[1725652422511,0.371554,53828.0,53812.0,0.373164]
[1725652422512,0.371614,53820.0,53812.0,0.373164]
[1725652422731,0.371526,53832.0,53824.0,0.0015]
[1725652422947,0.3343,53840.0,53822.0,0.0015]
[1725652422948,0.92897,53823.0,53822.0,0.0015]
[1725652423401,0.92897,53823.0,53820.0,0.0015]
[1725652423402,0.185801,53821.0,53820.0,0.0015]
[1725652423629,0.705776,53840.0,53824.0,0.0015]
[1725652423630,0.3343,53840.0,53824.0,0.0015]
[1725652423857,0.185787,53825.0,53824.0,0.0015]
[1725652424074,0.3343,53840.0,53824.0,0.0015]
[1725652424075,0.371507,53835.0,53824.0,0.0015]
[1725652424295,0.371546,53830.0,53824.0,0.0015]
[1725652424517,0.371486,53838.0,53830.0,0.0015]
[1725652424740,0.3343,53846.0,53833.0,0.185757]
[1725652424945,0.3343,53846.0,53831.0,0.371533]
[1725652424946,0.007,53840.0,53831.0,0.185766]
[1725652425221,0.007,53840.0,53830.0,0.0015]
[1725652425222,0.185753,53835.0,53830.0,0.0015]
[1725652425437,0.185749,53837.0,53836.0,0.0015]
[1725652425860,0.371478,53839.0,53834.0,0.0015]
[1725652425861,0.185749,53836.0,53834.0,0.0015]
[1725652426070,0.185745,53838.0,53834.0,0.0015]
[1725652426286,0.185742,53839.0,53834.0,0.0015]
[1725652426501,0.185743,53838.0,53834.0,0.0015]
[1725652426725,0.371427,53847.0,53834.0,0.0015]
[1725652426944,0.371427,53847.0,53827.0,0.570357]
[1725652426945,0.557154,53845.0,53844.0,0.0015]
[1725652427156,0.557154,53845.0,53841.0,0.0015]
[1725652427157,0.371444,53844.0,53841.0,0.0015]
[1725652427368,0.371436,53845.0,53841.0,0.0015]
[1725652427580,0.371407,53850.0,53842.0,0.0015]
[1725652427581,0.185727,53843.0,53842.0,0.0015]
[1725652428009,0.185718,53845.0,53844.0,0.0015]
[1725652428439,0.02909317,53846.0,53840.0,0.185733]
[1725652428440,0.185721,53844.0,53841.0,0.0015]
[1725652428672,0.185721,53844.0,53832.0,0.371521]
[1725652428673,0.02909317,53846.0,53831.0,0.0015]
[1725652428916,0.02909317,53846.0,53829.0,0.3413]
[1725652428917,0.336,53843.0,53829.0,0.89560836]
[1725652429110,0.336,53843.0,53823.0,0.3413]
[1725652429111,0.3224,53842.0,53823.0,0.3413]
[1725652429328,0.557262,53835.0,53834.0,0.008]
[1725652429531,0.185749,53836.0,53834.0,0.008]
[1725652429742,0.185752,53835.0,53834.0,0.008]
[1725652429960,0.185765,53832.0,53828.0,0.187276]
[1725652430211,0.02909767,53838.0,53824.0,0.371578]
[1725652430212,0.185771,53830.0,53827.0,0.0015]
[1725652430429,0.18576,53833.0,53827.0,0.0015]
[1725652430649,0.02909767,53838.0,53836.0,0.0015]
[1725652430872,0.02909767,53838.0,53820.0,0.2875]
[1725652430873,0.185752,53835.0,53834.0,0.005]
[1725652431318,0.185758,53834.0,53831.0,0.0015]
[1725652431543,0.371409,53849.0,53828.0,0.371552]
[1725652431544,0.05599868,53855.0,53828.0,0.0015]
[1725652431762,0.05599868,53855.0,53802.0,0.5]
[1725652431763,0.371586,53824.0,53818.0,0.3413]
[1725652431976,0.185796,53823.0,53822.0,0.55430836]
[1725652432188,0.185796,53823.0,53820.0,0.0015]
[1725652432395,0.371569,53826.0,53818.0,0.3413]
[1725652432605,0.185794,53823.0,53819.0,0.185805]
[1725652432843,0.336,53834.0,53818.0,0.3413]
[1725652432844,0.371586,53824.0,53818.0,0.3413]
[1725652433063,0.1994,53831.0,53818.0,0.3413]
[1725652433280,0.001,53824.0,53818.0,0.014]
[1725652433521,0.1994,53831.0,53822.0,0.0015]
[1725652433732,0.1,53836.0,53827.0,0.185778]
[1725652433957,0.185754,53835.0,53831.0,0.185764]
[1725652434169,0.185754,53835.0,53828.0,0.373051]
[1725652434170,0.1,53844.0,53828.0,0.373051]
[1725652434171,0.1982,53846.0,53828.0,0.0015]
[1725652434391,0.1982,53846.0,53823.0,0.3414]
[1725652434392,0.185735,53840.0,53839.0,0.0015]
[1725652434616,0.185726,53843.0,53839.0,0.3469]
[1725652434858,0.185735,53840.0,53839.0,0.3469]
[1725652435084,0.557164,53844.0,53843.0,0.0015]
[1725652435302,0.557196,53841.0,53840.0,0.0015]
[1725652435524,0.371471,53840.0,53839.0,0.3454]
[1725652435742,0.185732,53841.0,53839.0,0.3454]
[1725652435971,0.371453,53843.0,53839.0,0.3454]
[1725652436194,0.28096802,53856.0,53839.0,0.3454]
[1725652436195,0.185735,53840.0,53839.0,0.3454]
[1725652436409,0.371469,53841.0,53834.0,0.0015]
[1725652436410,0.371491,53837.0,53834.0,0.0015]
[1725652436651,0.001,53844.0,53834.0,0.0015]
[1725652436652,0.18575,53836.0,53834.0,0.0015]
[1725652436868,0.371381,53853.0,53834.0,0.0015]
[1725652436869,0.00082,53855.0,53835.0,0.371504]
[1725652437104,0.001,53841.0,53840.0,0.928677]
[1725652437331,0.00082,53855.0,53848.0,0.0015]
[1725652437332,0.40049986,53850.0,53848.0,0.0015]
[1725652437544,0.185704,53849.0,53848.0,0.0015]
[1725652437982,0.557112,53849.0,53848.0,0.0015]
[1725652438204,0.40049986,53850.0,53842.0,0.371451]
[1725652438205,0.185709,53848.0,53846.0,0.0015]
[1725652438433,0.185704,53849.0,53846.0,0.0015]
[1725652438666,0.185704,53849.0,53844.0,0.0015]
[1725652438667,0.185711,53847.0,53844.0,0.0015]
[1725652438884,0.185706,53849.0,53845.0,0.0015]
[1725652439105,0.185706,53849.0,53845.0,0.187217]
[1725652439365,0.371441,53845.0,53836.0,0.0015]
[1725652439580,0.02909186,53850.0,53831.0,0.0015]
[1725652439581,0.3355,53846.0,53831.0,0.0015]
[1725652439807,0.3355,53846.0,53832.0,0.185761]
[1725652439808,0.185752,53836.0,53832.0,0.185761]
[1725652440032,0.185756,53834.0,53831.0,0.0015]
[1725652440251,0.185744,53838.0,53831.0,0.373028]
[1725652440508,0.185756,53834.0,53829.0,0.0015]
[1725652440717,0.185751,53836.0,53832.0,0.18576]
[1725652440937,0.185757,53834.0,53831.0,0.185766]
[1725652441165,0.185757,53834.0,53829.0,0.3403]
[1725652441166,0.185757,53834.0,53830.0,0.185767]
[1725652441387,0.023,53849.0,53834.0,0.0015]
[1725652441601,0.023,53849.0,53833.0,0.001628]
[1725652441602,0.92878,53834.0,53833.0,0.001628]
[1725652442284,0.1,53843.0,53833.0,0.001628]
[1725652442527,0.371423,53847.0,53840.0,0.0015]
[1725652442754,0.009814,53849.0,53846.0,0.0015]
[1725652443008,0.009814,53849.0,53846.0,0.372925]
[1725652443009,0.000814,53849.0,53846.0,0.372925]
[1725652443225,0.000814,53849.0,53846.0,0.0015]
[1725652443669,0.000814,53849.0,53848.0,0.187207]
[1725652443893,0.000814,53849.0,53848.0,0.930037]
[1725652444117,0.000814,53849.0,53848.0,1.832652]
[1725652444562,0.000814,53849.0,53848.0,2.204067]
[1725652444797,0.000814,53849.0,53848.0,2.27388987]
[1725652445011,0.000814,53849.0,53842.0,0.371456]
[1725652445221,0.000814,53849.0,53848.0,0.187207]
[1725652445681,0.000814,53849.0,53848.0,0.558622]
[1725652445907,0.000814,53849.0,53848.0,1.276237]
[1725652446172,0.000814,53849.0,53848.0,1.647652]
[1725652446398,0.000814,53849.0,53848.0,0.904822]
[1725652446399,0.001814,53849.0,53848.0,0.904822]
[1725652446623,0.001814,53849.0,53848.0,0.3462]
[1725652446624,0.000814,53849.0,53848.0,0.3462]
[1725652446848,0.000814,53849.0,53848.0,0.3602]